fUST/lending_fUST_20250718
["ID","MTS","AMOUNT","RATE_DAILY","PERIOD"]
[372928672,1752810668675,-1075.83788263,0.00023728,9]
[372928673,1752810668684,-168.0,0.00023736,2]
[372928674,1752810668693,-1950.34,0.00023825,2]
[372928675,1752810668704,-500.0,0.00023836,2]
[372928676,1752810668716,-3861.19463916,0.00023841,2]
[372928677,1752810668725,-168.0,0.00023847,2]
[372928678,1752810668735,-165.00396518,0.00023863,2]
[372928679,1752810668745,-162.95973127,0.00023863,2]
[372928680,1752810668755,-609.0,0.00023874,2]
[372928681,1752810668764,-1950.34,0.00023925,4]
[372928682,1752810668774,-168.0,0.0002393,2]
[372928683,1752810668784,-576.6654682,0.00023945,2]
[372928684,1752810668794,-177.960412,0.00023945,2]
[372928685,1752810668874,-168.0,0.00024,2]
[372928686,1752810668885,-160.0,0.00024,7]
[372928687,1752810668895,-160.0,0.00024,7]
[372928688,1752810668905,-230.89969799,0.00024,7]
[372928689,1752810668915,-160.0,0.00024,7]
[372928690,1752810668924,-215.63268315,0.00024,7]
[372928691,1752810668934,-151.0,0.00024,7]
[372928692,1752810668944,-174.152162,0.00024,7]
[372928693,1752810668954,-160.0,0.00024,7]
[372928694,1752810668964,-174.152162,0.00024,7]
[372928695,1752810668973,-151.0,0.00024,7]
[372928696,1752810668983,-423.062513,0.00024,7]
[372928697,1752810668992,-423.062513,0.00024,7]
[372928698,1752810669002,-839.30593155,0.00024,7]
[372928699,1752810669012,-525.75194068,0.00024,7]
[372928700,1752810669021,-168.0,0.00024016,2]
[372928701,1752810669031,-1950.34,0.00024025,5]
[372928702,1752810669042,-227.25358317,0.00024038,10]
[372928703,1752810669081,-817.84,0.00024038,10]
[372928704,1752810669329,-287.50800003,0.00016438,2]
[372928705,1752810744697,-1009.08392672,0.00027399,120]
[372928706,1752810744721,-378.47914,0.000274,120]
[372928707,1752810744744,-326.31134,0.000274,120]
[372928708,1752810744766,-152.0,0.000276,120]
[372928709,1752810744790,-378.47914,0.000278,120]
[372928710,1752810744811,-326.31134,0.000278,120]
[372928711,1752810744834,-436.95928,0.000279,120]
[372928712,1752810744854,-13992.37583328,0.00028,120]
[372928713,1752810745406,-175.0,0.00028,120]
[372928714,1752810951456,249.813781,0.00013699,2]
[372928716,1752811533291,-411.82081211,0.00016237,2]
[372928717,1752811533316,-324.55641989,0.00016238,2]
[372928735,1752811832516,-360.34321057,0.00016237,2]
[372928737,1752811832526,-2703.32743417,0.00016238,2]
[372928739,1752811832535,-1200.0,0.00016326,2]
[372928740,1752811832544,-200.04018732,0.00016327,2]
[372928741,1752811832569,-99.95981268,0.00016327,2]
[372928742,1752811832579,-300.0,0.00016327,2]
[372928743,1752811832588,-331.26,0.00016328,3]
[372928744,1752811832597,-165.63,0.00016328,3]
[372928745,1752811832607,-496.89,0.00016328,3]
[372928746,1752811832616,-20734.62624282,0.00016333,2]
[372928747,1752811832627,-354.64962105,0.00016337,2]
[372928748,1752811832637,-159.54999318,0.00016337,2]
[372928749,1752811832646,-122705.05763628,0.00016338,2]
[372928750,1752811832658,-56711.75462841,0.00016338,2]
[372928751,1752811832669,-4674.44222305,0.00016338,2]
[372928752,1752811832680,-515.33909973,0.00016338,2]
[372928767,1752811838524,-500.0,0.00016332,2]
[372928768,1752811838534,-408.74352603,0.00016332,2]
[372928769,1752811838543,-500.0,0.00016332,2]
[372928770,1752811838553,-500.0,0.00016332,2]
[372928771,1752811838563,-500.0,0.00016332,2]
[372928773,1752811838572,-500.0,0.00016332,2]
[372928774,1752811838582,-500.0,0.00016332,2]
[372928775,1752811838591,-134.56587775,0.00016332,2]
[372928776,1752811838602,-365.43412225,0.00016332,2]
[372928777,1752811838611,-166.43760932,0.00016332,2]
[372928778,1752811838621,-500.0,0.00016332,2]
[372928779,1752811838633,-500.0,0.00016332,2]
[372928780,1752811838643,-500.0,0.00016332,2]
[372928781,1752811838653,-500.0,0.00016332,2]
[372928782,1752811838662,-365.36215628,0.00016332,2]
[372928783,1752811838672,-500.0,0.00016332,2]
[372928784,1752811838681,-4063.69262424,0.00016338,2]
[372928785,1752811838692,-1244.49819915,0.00016338,2]
[372928786,1752811838704,-4613.07315864,0.00016338,2]
[372928787,1752811838715,-804.22916917,0.00016338,2]
[372928788,1752811838726,-1042.50000061,0.00016338,2]
[372928789,1752811838737,-539.84621936,0.00016338,2]
[372928790,1752811838747,-3706.82875191,0.00016338,2]
[372928791,1752811838836,-2824.71666001,0.00016338,2]
[372928792,1752811838892,-81.81969244,0.00016338,2]
[372928793,1752811838921,-166472.201937,0.00016338,2]
[372928794,1752811838930,-921.27760435,0.00016338,2]
[372928795,1752811838939,-500.0,0.00016373,2]
[372928796,1752811838949,-500.0,0.00016373,2]
[372928797,1752811838958,-460.0,0.00016438,2]
[372928798,1752811838968,-378.47022634,0.00016438,2]
[372928799,1752811838981,-460.0,0.00016438,2]
[372928800,1752811838991,-450.35692837,0.00016438,2]
[372928801,1752811839000,-460.0,0.00016438,2]
[372928802,1752811839009,-465.50224286,0.00016438,2]
[372928803,1752811839019,-460.0,0.00016438,2]
[372928804,1752811839028,-460.0,0.00016438,2]
[372928805,1752811839037,-461.84016934,0.00016438,2]
[372928806,1752811839047,-460.0,0.00016438,2]
[372928807,1752811839056,-460.0,0.00016438,2]
[372928808,1752811839066,-461.21013454,0.00016438,2]
[372928809,1752811839078,-460.0,0.00016438,2]
[372928810,1752811839089,-171.77584685,0.00016438,2]
[372928811,1752811839099,-460.0,0.00016438,2]
[372928812,1752811839108,-460.0,0.00016438,2]
[372928813,1752811839119,-460.0,0.00016438,2]
[372928814,1752811839129,-460.0,0.00016438,2]
[372928815,1752811839138,-460.0,0.00016438,2]
[372928816,1752811839148,-523.47508925,0.00016438,2]
[372928817,1752811839159,-244.89343282,0.00016438,2]
[372928818,1752811839169,-460.0,0.00016438,2]
[372928819,1752811839180,-461.27328234,0.00016438,2]
[372928820,1752811839189,-460.0,0.00016438,2]
[372928821,1752811839199,-460.0,0.00016438,2]
[372928822,1752811839208,-460.0,0.00016438,2]
[372928823,1752811839218,-162.81104477,0.00016438,2]
[372928824,1752811839228,-460.0,0.00016438,2]
[372928825,1752811839237,-460.0,0.00016438,2]
[372928826,1752811839246,-462.1120937,0.00016438,2]
[372928827,1752811839256,-460.0,0.00016438,2]
[372928828,1752811839265,-460.0,0.00016438,2]
[372928829,1752811839275,-460.0,0.00016438,2]
[372928830,1752811839284,-458.38712381,0.00016438,2]
[372928831,1752811839293,-461.07619796,0.00016438,2]
[372928832,1752811839303,-460.0,0.00016438,2]
[372928833,1752811839312,-460.0,0.00016438,2]
[372928834,1752811839322,-460.0,0.00016438,2]
[372928835,1752811839338,-460.0,0.00016438,2]
[372928836,1752811839351,-197.83467611,0.00016438,2]
[372928837,1752811839361,-461.21754757,0.00016438,2]
[372928838,1752811839371,-460.0,0.00016438,2]
[372928839,1752811839383,-460.31813519,0.00016438,2]
[372928840,1752811839393,-461.11161669,0.00016438,2]
[372928841,1752811839402,-460.0,0.00016438,2]
[372928842,1752811839412,-460.0,0.00016438,2]
[372928843,1752811839422,-460.0,0.00016438,2]
[372928844,1752811839431,-461.53870294,0.00016438,2]
[372928845,1752811839441,-463.24584956,0.00016438,2]
[372928846,1752811839451,-460.0,0.00016438,2]
[372928847,1752811839461,-499.49576666,0.00016438,2]
[372928848,1752811839471,-363.51567259,0.00016438,2]
[372928849,1752811839482,-460.0,0.00016438,2]
[372928850,1752811839496,-460.0,0.00016438,2]
[372928851,1752811839505,-460.7873372,0.00016438,2]
[372928852,1752811839515,-461.71439258,0.00016438,2]
[372928853,1752811839525,-428.19837951,0.00016438,2]
[372928854,1752811839535,-460.0,0.00016438,2]
[372928855,1752811839544,-460.77395065,0.00016438,2]
[372928856,1752811839554,-460.0,0.00016438,2]
[372928857,1752811839564,-461.30220969,0.00016438,2]
[372928858,1752811839579,-460.0,0.00016438,2]
[372928859,1752811839589,-517.65742134,0.00016438,2]
[372928860,1752811839598,-309.5643497,0.00016438,2]
[372928861,1752811839608,-460.0,0.00016438,2]
[372928862,1752811839617,-461.95609254,0.00016438,2]
[372928863,1752811839630,-460.85464407,0.00016438,2]
[372928864,1752811839640,-462.71843929,0.00016438,2]
[372928865,1752811839649,-460.0,0.00016438,2]
[372928866,1752811839658,-460.0,0.00016438,2]
[372928867,1752811839668,-460.0,0.00016438,2]
[372928868,1752811839678,-460.0,0.00016438,2]
[372928869,1752811839688,-460.0,0.00016438,2]
[372928870,1752811839698,-460.0,0.00016438,2]
[372928871,1752811839707,-460.0,0.00016438,2]
[372928872,1752811839717,-500.0,0.00016438,2]
[372928873,1752811839727,-500.0,0.00016438,2]
[372928874,1752811839736,-500.0,0.00016438,2]
[372928875,1752811839746,-500.0,0.00016438,2]
[372928876,1752811839756,-500.0,0.00016438,2]
[372928877,1752811839766,-460.0,0.00016438,2]
[372928878,1752811839776,-500.0,0.00016438,2]
[372928879,1752811839786,-500.0,0.00016438,2]
[372928880,1752811839795,-500.0,0.00016438,2]
[372928881,1752811839805,-500.0,0.00016438,2]
[372928882,1752811839815,-500.0,0.00016438,2]
[372928883,1752811839824,-500.0,0.00016438,2]
[372928884,1752811839834,-460.0,0.00016438,2]
[372928885,1752811839844,-500.0,0.00016438,2]
[372928886,1752811839853,-500.0,0.00016438,2]
[372928887,1752811839863,-500.0,0.00016438,2]
[372928888,1752811839872,-631.76576473,0.00016438,2]
[372928889,1752811839887,-460.0,0.00016438,2]
[372928890,1752811839896,-460.0,0.00016438,2]
[372928891,1752811839906,-460.0,0.00016438,2]
[372928892,1752811839916,-18.16120723,0.00016438,2]
[372928893,1752811839943,-441.83879277,0.00016438,2]
[372928895,1752811839953,-460.0,0.00016438,2]
[372928896,1752811839964,-460.0,0.00016438,2]
[372928897,1752811839973,-460.0,0.00016438,2]
[372928898,1752811839983,-466.61575344,0.00016438,2]
[372928899,1752811839992,-461.1280805,0.00016438,2]
[372928900,1752811840002,-460.0,0.00016438,2]
[372928901,1752811840017,-460.0,0.00016438,2]
[372928902,1752811840026,-435.26288545,0.00016438,2]
[372928903,1752811840036,-557.56822474,0.00016438,2]
[372928904,1752811840046,-460.0,0.00016438,2]
[372928905,1752811840056,-463.23735156,0.00016438,2]
[372928906,1752811840066,-460.0,0.00016438,2]
[372928907,1752811840077,-460.4454063,0.00016438,2]
[372928908,1752811840087,-463.32917827,0.00016438,2]
[372928909,1752811840097,-460.0,0.00016438,2]
[372928910,1752811840107,-460.0,0.00016438,2]
[372928911,1752811840117,-460.0,0.00016438,2]
[372928912,1752811840129,-460.0,0.00016438,2]
[372928913,1752811840139,-460.0,0.00016438,2]
[372928914,1752811840149,-460.0,0.00016438,2]
[372928915,1752811840159,-267.45747996,0.00016438,2]
[372928917,1752811840169,-460.0,0.00016438,2]
[372928918,1752811840178,-460.0,0.00016438,2]
[372928919,1752811840188,-460.0,0.00016438,2]
[372928920,1752811840198,-460.0,0.00016438,2]
[372928921,1752811840207,-460.0,0.00016438,2]
[372928922,1752811840217,-460.0,0.00016438,2]
[372928923,1752811840226,-460.0,0.00016438,2]
[372928924,1752811840237,-518.14701083,0.00016438,2]
[372928925,1752811840246,-460.0,0.00016438,2]
[372928926,1752811840256,-460.0,0.00016438,2]
[372928927,1752811840266,-460.0,0.00016438,2]
[372928928,1752811840276,-460.0,0.00016438,2]
[372928929,1752811840286,-460.0,0.00016438,2]
[372928930,1752811840296,-460.0,0.00016438,2]
[372928931,1752811840450,-460.0,0.00016438,2]
[372928932,1752811840462,-460.0,0.00016438,2]
[372928933,1752811840471,-460.0,0.00016438,2]
[372928934,1752811840481,-460.0,0.00016438,2]
[372928935,1752811840490,-460.0,0.00016438,2]
[372928936,1752811840500,-460.0,0.00016438,2]
[372928937,1752811840509,-460.0,0.00016438,2]
[372928938,1752811840519,-460.96137197,0.00016438,2]
[372928939,1752811840528,-232.16633728,0.00016438,2]
[372928940,1752811840538,-460.0,0.00016438,2]
[372928941,1752811840549,-460.0,0.00016438,2]
[372928942,1752811840558,-460.0,0.00016438,2]
[372928943,1752811840568,-226.28818042,0.00016438,2]
[372928945,1752811840578,-460.0,0.00016438,2]
[372928946,1752811840587,-460.0,0.00016438,2]
[372928947,1752811840597,-460.0,0.00016438,2]
[372928948,1752811840606,-460.0,0.00016438,2]
[372928949,1752811840616,-500.0,0.00016438,2]
[372928950,1752811840625,-460.0,0.00016438,2]
[372928951,1752811840634,-460.0,0.00016438,2]
[372928952,1752811840644,-460.0,0.00016438,2]
[372928953,1752811840653,-460.0,0.00016438,2]
[372928954,1752811840663,-460.0,0.00016438,2]
[372928955,1752811840672,-473.2047732,0.00016438,2]
[372928956,1752811840682,-460.0,0.00016438,2]
[372928957,1752811840691,-460.0,0.00016438,2]
[372928958,1752811840700,-460.0,0.00016438,2]
[372928959,1752811840710,-460.0,0.00016438,2]
[372928960,1752811840719,-460.0,0.00016438,2]
[372928961,1752811840729,-460.0,0.00016438,2]
[372928962,1752811840739,-462.3023024,0.00016438,2]
[372928963,1752811840748,-460.0,0.00016438,2]
[372928964,1752811840758,-460.0,0.00016438,2]
[372928965,1752811840767,-460.0,0.00016438,2]
[372928966,1752811840776,-460.0,0.00016438,2]
[372928967,1752811840785,-460.0,0.00016438,2]
[372928968,1752811840795,-460.0,0.00016438,2]
[372928969,1752811840804,-460.0,0.00016438,2]
[372928970,1752811840817,-460.0,0.00016438,2]
[372928971,1752811840827,-460.0,0.00016438,2]
[372928972,1752811840837,-460.0,0.00016438,2]
[372928973,1752811840846,-460.0,0.00016438,2]
[372928974,1752811840856,-460.0,0.00016438,2]
[372928975,1752811840865,-460.0,0.00016438,2]
[372928976,1752811840874,-460.0,0.00016438,2]
[372928977,1752811840884,-460.0,0.00016438,2]
[372928978,1752811840898,-460.0,0.00016438,2]
[372928979,1752811840907,-460.0,0.00016438,2]
[372928980,1752811840917,-460.0,0.00016438,2]
[372928981,1752811840926,-460.0,0.00016438,2]
[372928982,1752811840935,-460.0,0.00016438,2]
[372928983,1752811840944,-460.0,0.00016438,2]
[372928984,1752811840954,-460.0,0.00016438,2]
[372928985,1752811840963,-460.0,0.00016438,2]
[372928986,1752811840973,-460.0,0.00016438,2]
[372928987,1752811840982,-465.14445071,0.00016438,2]
[372928988,1752811840991,-460.0,0.00016438,2]
[372928989,1752811841001,-460.0,0.00016438,2]
[372928990,1752811841010,-460.0,0.00016438,2]
[372928991,1752811841020,-460.0,0.00016438,2]
[372928992,1752811841030,-467.72518954,0.00016438,2]
[372928993,1752811841039,-460.0,0.00016438,2]
[372928994,1752811841049,-460.0,0.00016438,2]
[372928995,1752811841058,-460.0,0.00016438,2]
[372928996,1752811841068,-460.0,0.00016438,2]
[372928997,1752811841082,-460.0,0.00016438,2]
[372928998,1752811841091,-460.0,0.00016438,2]
[372928999,1752811841101,-460.0,0.00016438,2]
[372929000,1752811841110,-460.0,0.00016438,2]
[372929001,1752811841122,-462.77736782,0.00016438,2]
[372929002,1752811841131,-463.08636285,0.00016438,2]
[372929003,1752811841141,-468.60036054,0.00016438,2]
[372929004,1752811841150,-460.0,0.00016438,2]
[372929005,1752811841160,-460.0,0.00016438,2]
[372929006,1752811841169,-460.0,0.00016438,2]
[372929007,1752811841179,-460.0,0.00016438,2]
[372929008,1752811841188,-463.36528286,0.00016438,2]
[372929009,1752811841198,-254.87851502,0.00016438,2]
[372929010,1752811841207,-460.0,0.00016438,2]
[372929011,1752811841216,-460.0,0.00016438,2]
[372929012,1752811841225,-460.0,0.00016438,2]
[372929013,1752811841235,-460.0,0.00016438,2]
[372929014,1752811841244,-460.0,0.00016438,2]
[372929015,1752811841253,-460.0,0.00016438,2]
[372929016,1752811841263,-460.0,0.00016438,2]
[372929017,1752811841272,-460.0,0.00016438,2]
[372929018,1752811841282,-1000.0,0.00016438,2]
[372929019,1752811841291,-460.0,0.00016438,2]
[372929020,1752811841301,-460.0,0.00016438,2]
[372929021,1752811841311,-460.0,0.00016438,2]
[372929022,1752811841320,-460.0,0.00016438,2]
[372929023,1752811841330,-460.0,0.00016438,2]
[372929024,1752811841339,-460.0,0.00016438,2]
[372929025,1752811841349,-460.0,0.00016438,2]
[372929026,1752811841358,-462.26785164,0.00016438,2]
[372929027,1752811841367,-461.84865898,0.00016438,2]
[372929028,1752811841377,-162.28079979,0.00016438,2]
[372929029,1752811841387,-460.0,0.00016438,2]
[372929030,1752811841396,-270.45844601,0.00016438,2]
[372929031,1752811841406,-460.0,0.00016438,2]
[372929032,1752811841415,-556.7680337,0.00016438,2]
[372929033,1752811841423,-460.0,0.00016438,2]
[372929034,1752811841433,-460.0,0.00016438,2]
[372929035,1752811841442,-460.0,0.00016438,2]
[372929036,1752811841452,-460.0,0.00016438,2]
[372929037,1752811841461,-500.0,0.00016438,2]
[372929038,1752811841477,-500.0,0.00016438,2]
[372929039,1752811841491,-460.0,0.00016438,2]
[372929040,1752811841501,-500.0,0.00016438,2]
[372929041,1752811841511,-420.0,0.00016438,2]
[372929042,1752811841521,-460.0,0.00016438,2]
[372929043,1752811841531,-460.0,0.00016438,2]
[372929044,1752811841541,-460.0,0.00016438,2]
[372929045,1752811841551,-460.0,0.00016438,2]
[372929046,1752811841562,-460.0,0.00016438,2]
[372929047,1752811841571,-460.0,0.00016438,2]
[372929048,1752811841581,-460.0,0.00016438,2]
[372929049,1752811841591,-460.0,0.00016438,2]
[372929050,1752811841602,-460.0,0.00016438,2]
[372929051,1752811841612,-455.45840667,0.00016438,2]
[372929052,1752811841622,-460.0,0.00016438,2]
[372929053,1752811841633,-239.61907105,0.00016438,2]
[372929054,1752811841643,-460.0,0.00016438,2]
[372929055,1752811841652,-516.4272939,0.00016438,2]
[372929056,1752811841662,-460.0,0.00016438,2]
[372929057,1752811841672,-460.0,0.00016438,2]
[372929058,1752811841682,-256.07028802,0.00016438,2]
[372929059,1752811841692,-463.18048663,0.00016438,2]
[372929060,1752811841702,-460.0,0.00016438,2]
[372929061,1752811841712,-460.0,0.00016438,2]
[372929062,1752811841722,-463.19997479,0.00016438,2]
[372929063,1752811841732,-460.0,0.00016438,2]
[372929064,1752811841741,-460.0,0.00016438,2]
[372929065,1752811841751,-463.14586353,0.00016438,2]
[372929066,1752811841761,-460.0,0.00016438,2]
[372929067,1752811841771,-460.0,0.00016438,2]
[372929068,1752811841781,-460.0,0.00016438,2]
[372929069,1752811841791,-416.75843244,0.00016438,2]
[372929070,1752811841800,-460.0,0.00016438,2]
[372929071,1752811841810,-460.0,0.00016438,2]
[372929072,1752811841823,-460.0,0.00016438,2]
[372929073,1752811841833,-460.0,0.00016438,2]
[372929074,1752811841843,-460.0,0.00016438,2]
[372929075,1752811841852,-243.10649563,0.00016438,2]
[372929076,1752811841862,-460.0,0.00016438,2]
[372929077,1752811841872,-461.23579914,0.00016438,2]
[372929078,1752811841882,-460.0,0.00016438,2]
[372929079,1752811841892,-460.0,0.00016438,2]
[372929080,1752811841902,-460.0,0.00016438,2]
[372929081,1752811841912,-460.0,0.00016438,2]
[372929082,1752811841922,-500.35390495,0.00016438,2]
[372929083,1752811841932,-460.0,0.00016438,2]
[372929084,1752811841941,-460.0,0.00016438,2]
[372929085,1752811841951,-460.0,0.00016438,2]
[372929086,1752811841961,-460.0,0.00016438,2]
[372929087,1752811841971,-460.0,0.00016438,2]
[372929088,1752811841980,-460.0,0.00016438,2]
[372929089,1752811841990,-460.0,0.00016438,2]
[372929090,1752811841999,-460.0,0.00016438,2]
[372929091,1752811842009,-460.0,0.00016438,2]
[372929092,1752811842018,-463.89152186,0.00016438,2]
[372929093,1752811842028,-460.0,0.00016438,2]
[372929094,1752811842039,-463.11479536,0.00016438,2]
[372929095,1752811842048,-462.16100348,0.00016438,2]
[372929096,1752811842058,-460.0,0.00016438,2]
[372929097,1752811842067,-460.0,0.00016438,2]
[372929098,1752811842078,-460.0,0.00016438,2]
[372929099,1752811842088,-460.0,0.00016438,2]
[372929100,1752811842097,-460.0,0.00016438,2]
[372929101,1752811842107,-460.0,0.00016438,2]
[372929102,1752811842116,-450.68759197,0.00016438,2]
[372929103,1752811842128,-460.0,0.00016438,2]
[372929104,1752811842138,-463.03886414,0.00016438,2]
[372929105,1752811842147,-460.0,0.00016438,2]
[372929106,1752811842156,-460.0,0.00016438,2]
[372929107,1752811842166,-460.0,0.00016438,2]
[372929108,1752811842175,-460.0,0.00016438,2]
[372929109,1752811842185,-460.0,0.00016438,2]
[372929110,1752811842194,-460.70638115,0.00016438,2]
[372929111,1752811842203,-460.0,0.00016438,2]
[372929112,1752811842212,-460.0,0.00016438,2]
[372929113,1752811842221,-460.0,0.00016438,2]
[372929114,1752811842230,-460.0,0.00016438,2]
[372929115,1752811842240,-460.0,0.00016438,2]
[372929116,1752811842250,-460.0,0.00016438,2]
[372929117,1752811842259,-460.0,0.00016438,2]
[372929118,1752811842268,-461.48393375,0.00016438,2]
[372929119,1752811842277,-460.0,0.00016438,2]
[372929120,1752811842286,-460.0,0.00016438,2]
[372929121,1752811842295,-461.90416747,0.00016438,2]
[372929122,1752811842305,-460.0,0.00016438,2]
[372929123,1752811842314,-508.17446043,0.00016438,2]
[372929124,1752811842324,-460.0,0.00016438,2]
[372929125,1752811842333,-460.0,0.00016438,2]
[372929126,1752811842342,-460.0,0.00016438,2]
[372929127,1752811842351,-313.53300192,0.00016438,2]
[372929128,1752811842361,-460.0,0.00016438,2]
[372929129,1752811842370,-460.0,0.00016438,2]
[372929130,1752811842381,-460.0,0.00016438,2]
[372929131,1752811842390,-460.0,0.00016438,2]
[372929132,1752811842399,-460.0,0.00016438,2]
[372929133,1752811842408,-460.0,0.00016438,2]
[372929134,1752811842418,-462.87830416,0.00016438,2]
[372929135,1752811842431,-460.0,0.00016438,2]
[372929136,1752811842440,-460.0,0.00016438,2]
[372929137,1752811842450,-460.0,0.00016438,2]
[372929138,1752811842459,-460.0,0.00016438,2]
[372929139,1752811842469,-403.32982664,0.00016438,2]
[372929140,1752811842478,-460.0,0.00016438,2]
[372929141,1752811842488,-460.0,0.00016438,2]
[372929142,1752811842497,-460.0,0.00016438,2]
[372929143,1752811842507,-820.75,0.00016438,2]
[372929144,1752811842516,-461.30803092,0.00016438,2]
[372929145,1752811842526,-460.0,0.00016438,2]
[372929146,1752811842535,-463.40450232,0.00016438,2]
[372929147,1752811842545,-460.0,0.00016438,2]
[372929148,1752811842555,-460.0,0.00016438,2]
[372929149,1752811842565,-231.05412282,0.00016438,2]
[372929150,1752811842574,-1262.46,0.00016438,2]
[372929151,1752811842584,-500.0,0.00016438,2]
[372929152,1752811842594,-500.0,0.00016438,2]
[372929153,1752811842603,-460.0,0.00016438,2]
[372929154,1752811842613,-460.0,0.00016438,2]
[372929155,1752811842622,-460.0,0.00016438,2]
[372929156,1752811842632,-460.0,0.00016438,2]
[372929157,1752811842642,-460.0,0.00016438,2]
[372929158,1752811842651,-460.0,0.00016438,2]
[372929159,1752811842660,-460.0,0.00016438,2]
[372929160,1752811842670,-293.57597022,0.00016438,2]
[372929161,1752811842680,-1968.81,0.00016438,2]
[372929162,1752811842690,-461.77988863,0.00016438,2]
[372929163,1752811842699,-460.0,0.00016438,2]
[372929164,1752811842709,-460.0,0.00016438,2]
[372929165,1752811842718,-460.0,0.00016438,2]
[372929166,1752811842728,-460.0,0.00016438,2]
[372929167,1752811842737,-460.0,0.00016438,2]
[372929168,1752811842747,-460.0,0.00016438,2]
[372929169,1752811842756,-460.0,0.00016438,2]
[372929170,1752811842766,-460.0,0.00016438,2]
[372929171,1752811842775,-460.0,0.00016438,2]
[372929172,1752811842785,-460.0,0.00016438,2]
[372929173,1752811842794,-460.0,0.00016438,2]
[372929174,1752811842804,-464.45047135,0.00016438,2]
[372929175,1752811842814,-460.0,0.00016438,2]
[372929176,1752811842824,-460.0,0.00016438,2]
[372929177,1752811842834,-460.0,0.00016438,2]
[372929179,1752811842844,-460.0,0.00016438,2]
[372929180,1752811842854,-460.0,0.00016438,2]
[372929181,1752811842864,-460.0,0.00016438,2]
[372929182,1752811842875,-460.0,0.00016438,2]
[372929183,1752811842887,-460.0,0.00016438,2]
[372929185,1752811842897,-460.0,0.00016438,2]
[372929186,1752811842907,-501.82861809,0.00016438,2]
[372929187,1752811842918,-471.73,0.00016438,2]
[372929190,1752811843060,-460.0,0.00016438,2]
[372929191,1752811843071,-500.0,0.00016438,2]
[372929192,1752811843085,-500.0,0.00016438,2]
[372929193,1752811843095,-1257.12,0.00016438,2]
[372929194,1752811843105,-437.81983444,0.00016438,2]
[372929196,1752811843116,-529.63850119,0.00016438,2]
[372929198,1752811843126,-513.3,0.00016438,2]
[372929199,1752811843138,-460.0,0.00016438,2]
[372929200,1752811843147,-460.0,0.00016438,2]
[372929201,1752811843158,-489.43714189,0.00016438,2]
[372929202,1752811843168,-460.0,0.00016438,2]
[372929203,1752811843178,-460.0,0.00016438,2]
[372929204,1752811843190,-460.0,0.00016438,2]
[372929205,1752811843200,-460.0,0.00016438,2]
[372929206,1752811843210,-460.0,0.00016438,2]
[372929208,1752811843219,-460.0,0.00016438,2]
[372929210,1752811843228,-460.0,0.00016438,2]
[372929211,1752811843238,-460.0,0.00016438,2]
[372929212,1752811843247,-460.0,0.00016438,2]
[372929213,1752811843257,-460.0,0.00016438,2]
[372929214,1752811843267,-460.0,0.00016438,2]
[372929215,1752811843277,-460.0,0.00016438,2]
[372929216,1752811843287,-460.0,0.00016438,2]
[372929217,1752811843298,-460.0,0.00016438,2]